fUST/lending_fUST_20240519
["ID","MTS","AMOUNT","RATE_DAILY","PERIOD"]
[327479952,1716103891534,-982.36782226,0.00068493,120]
[327479953,1716103891543,-982.36782226,0.00068493,120]
[327479954,1716103891552,-982.36782226,0.00068493,120]
[327479955,1716103891561,-982.36782226,0.00068493,120]
[327479956,1716103891570,-1052.53695242,0.00068493,120]
[327479957,1716103891579,-982.36782226,0.00068493,120]
[327479958,1716103891588,-982.36782226,0.00068493,120]
[327479959,1716103891597,-1052.53695242,0.00068493,120]
[327479960,1716103891606,-1052.53695242,0.00068493,120]
[327479961,1716103891614,-1052.53695242,0.00068493,120]
[327479962,1716103891623,-982.36782226,0.00068493,120]
[327479963,1716103891632,-1052.53695242,0.00068493,120]
[327479964,1716103891643,-500.0,0.00068493,120]
[327479965,1716103891652,-500.0,0.00068493,120]
[327479966,1716103891661,-500.0,0.00068493,120]
[327479967,1716103891670,-500.0,0.00068493,120]
[327479968,1716103891679,-500.0,0.00068493,120]
[327479969,1716103891689,-500.0,0.00068493,120]
[327479970,1716103891698,-500.0,0.00068493,120]
[327479971,1716103891708,-544.16800334,0.00068493,120]
[327479972,1716103891717,-250.0,0.00068493,120]
[327479973,1716103891726,-500.0,0.00068493,120]
[327479974,1716103891735,-750.0,0.00068493,120]
[327479975,1716103891745,-1000.0,0.00068493,120]
[327479976,1716103891755,-1250.0,0.00068493,120]
[327479977,1716103891764,-339.52043598,0.00068493,120]
[327479978,1716103891774,-185.0,0.000685,120]
[327479979,1716103891783,-80633.0,0.000687,120]
[327479980,1716103891793,-300000.0,0.000688,120]
[327479981,1716103891802,-2568.78,0.00069,90]
[327479982,1716103891811,-185.0,0.00069,120]
[327479983,1716103891820,-185.0,0.00069,120]
[327479984,1716103891829,-604.384605,0.00069,120]
[327479985,1716103891839,-3000.0,0.00069,120]
[327479986,1716103891848,-3000.0,0.0006901,120]
[327479987,1716103891858,-3000.0,0.0006902,120]
[327479988,1716103891867,-3000.0,0.0006903,120]
[327479989,1716103891876,-3524.382412,0.0006904,120]
[327479990,1716103891885,-185.0,0.000695,120]
[327479991,1716103891895,-185.0,0.000695,120]
[327479992,1716103891904,-321.932428,0.00069647,2]
[327479993,1716103891914,-151.0,0.00069671,120]
[327479994,1716103891923,-797.0,0.000698,120]
[327479995,1716103891932,-2000.0,0.0007,54]
[327479996,1716103891942,-500.0,0.0007,120]
[327479997,1716103891952,-150.0,0.0007,120]
[327479998,1716103891961,-1998.54770397,0.0007,120]
[327479999,1716103891971,-10000.0,0.0007,120]
[327480000,1716103891980,-8654.73424971,0.0007,120]
[327480001,1716103891989,-185.0,0.0007,120]
[327480002,1716103891998,-44102.84167676,0.0007,120]
[327480003,1716103892717,2100.99121054,0.00012327,2]
[327480004,1716103893050,3007.85027675,0.00012327,2]
[327480006,1716103959270,281.58116419,0.00012327,2]
[327480007,1716103960497,224.51190777,0.00012327,2]
[327480008,1716103964642,364.9556048,0.00012327,2]
[327480009,1716103965548,19252.21879879,0.00012327,2]
[327480010,1716103979215,281.58116419,0.00012327,2]
[327480011,1716103980494,224.51190777,0.00012327,2]
[327480012,1716103980593,364.9556048,0.00012327,2]
[327480013,1716103987518,19252.21879879,0.00012327,2]
[327480016,1716103997253,280.30754682,0.00012327,2]
[327480017,1716104002595,364.9556048,0.00012327,2]
[327480018,1716104003520,15321.12164168,0.00012327,2]
[327480019,1716104004450,224.51190777,0.00012327,2]
[327480021,1716104024594,364.9556048,0.00012327,2]
[327480022,1716104025330,167.02,0.00010959,2]
[327480023,1716104026463,224.51190777,0.00012327,2]
[327480025,1716104035811,835.15,0.00010959,2]
[327480026,1716104038616,274.7474061,0.00012327,2]
[327480028,1716104048456,224.51190777,0.00012327,2]
[327480029,1716104068460,224.51190777,0.00012327,2]
[327480031,1716104088479,224.51190777,0.00012327,2]
[327480035,1716104108474,224.51190777,0.00012327,2]
[327480036,1716104124474,224.51190777,0.00012327,2]
[327480037,1716104140474,224.51190777,0.00012327,2]
[327480038,1716104162480,224.51190777,0.00012327,2]
[327480039,1716104182481,224.51190777,0.00012327,2]
[327480040,1716104201186,1084.37,0.0002651,120]
[327480041,1716104202477,224.51190777,0.00012327,2]
[327480042,1716104220481,224.51190777,0.00012327,2]
[327480043,1716104238287,155.0,0.00018,30]
[327480044,1716104240485,224.51190777,0.00012327,2]
[327480047,1716104260551,263.70548405,0.00012327,2]
[327480048,1716104288862,-662.86374892,0.0003,30]
[327480049,1716104288888,-4365.789954,0.00035616,120]
[327480050,1716104288912,-49991.24024692,0.00038,30]
[327480051,1716104288937,-310.24817354,0.0004,120]
[327480052,1716104288962,-4365.789954,0.00041553,120]
[327480053,1716104288986,-1950.84240585,0.000425,30]
[327480054,1716104289011,-612.70865223,0.000467,30]
[327480055,1716104289035,-4365.789954,0.00047489,120]
[327480056,1716104289059,-4209.21970048,0.0005,60]
[327480057,1716104289083,-273.09448129,0.0005,30]
[327480058,1716104289107,-500.0,0.0005,30]
[327480059,1716104289130,-24680.41882525,0.0005,120]
[327480060,1716104289154,-4365.789954,0.00053425,120]
[327480061,1716104289179,-500.0,0.00054794,100]
[327480062,1716104302270,464.00462424,0.0003,30]
[327480063,1716104303465,500.0,0.0005,30]
[327480064,1716104309750,150.0,0.0005,30]
[327480065,1716104316237,464.00462424,0.0003,30]
[327480066,1716104321125,-24900.0,0.00015522,2]
[327480067,1716104321149,-586.0719446,0.00016,2]
[327480068,1716104321172,-1270.0,0.00016436,2]
[327480069,1716104321196,-500.0,0.00016438,2]
[327480070,1716104321219,-241.26925977,0.00016438,2]
[327480071,1716104321243,-500.0,0.00016438,2]
[327480072,1716104321268,-500.0,0.00016438,2]
[327480073,1716104321290,-503.87380617,0.00016438,2]
[327480074,1716104321314,-500.0,0.00016438,2]
[327480075,1716104321337,-248.55404867,0.00016438,2]
[327480076,1716104321510,-160.98524853,0.00016438,2]
[327480077,1716104321534,-500.0,0.00016438,2]
[327480078,1716104321557,-503.29572593,0.00016438,2]
[327480079,1716104321579,-500.0,0.00016438,2]
[327480080,1716104321601,-500.0,0.00016438,2]
[327480081,1716104321623,-500.0,0.00016438,2]
[327480082,1716104321646,-305.68268434,0.00016438,2]
[327480083,1716104321668,-500.0,0.00016438,2]
[327480084,1716104321701,-500.0,0.00016438,2]
[327480085,1716104321728,-354.06902005,0.00016438,2]
[327480086,1716104321753,-500.0,0.00016438,2]
[327480087,1716104321778,-500.0,0.00016438,2]
[327480088,1716104321802,-500.0,0.00016438,2]
[327480089,1716104321826,-606.82,0.00016438,2]
[327480090,1716104321851,-500.0,0.00016438,2]
[327480091,1716104321875,-500.0,0.00016438,2]
[327480092,1716104321904,-500.0,0.00016438,2]
[327480093,1716104321929,-500.0,0.00016438,2]
[327480094,1716104321953,-500.0,0.00016438,2]
[327480095,1716104321979,-500.0,0.00016438,2]
[327480096,1716104322005,-500.0,0.00016438,2]
[327480097,1716104322029,-500.0,0.00016438,2]
[327480098,1716104322053,-500.0,0.00016438,2]
[327480099,1716104322078,-500.0,0.00016438,2]
[327480100,1716104322102,-500.0,0.00016438,2]
[327480101,1716104322126,-500.0,0.00016438,2]
[327480102,1716104322150,-500.0,0.00016438,2]
[327480103,1716104322175,-500.0,0.00016438,2]
[327480104,1716104322199,-500.0,0.00016438,2]
[327480105,1716104322222,-500.0,0.00016438,2]
[327480106,1716104322245,-500.0,0.00016438,2]
[327480107,1716104322270,-456.48066931,0.00016438,2]
[327480108,1716104322293,-500.0,0.00016438,2]
[327480109,1716104322317,-1670.43,0.00016438,2]
[327480110,1716104322339,-615.59476351,0.00016438,2]
[327480111,1716104322362,-505.19787995,0.00016438,2]
[327480112,1716104322388,-500.0,0.00016438,2]
[327480113,1716104322411,-501.74973369,0.00016438,2]
[327480114,1716104322434,-500.0,0.00016438,2]
[327480115,1716104322461,-500.0,0.00016438,2]
[327480116,1716104322484,-500.0,0.00016438,2]
[327480117,1716104322509,-4990.23,0.00016438,2]
[327480118,1716104322532,-500.0,0.00016438,2]
[327480119,1716104322557,-528.85761456,0.00016438,2]
[327480120,1716104322580,-500.0,0.00016438,2]
[327480121,1716104322604,-500.0,0.00016438,2]
[327480122,1716104322628,-500.0,0.00016438,2]
[327480123,1716104322653,-500.0,0.00016438,2]
[327480124,1716104322679,-500.0,0.00016438,2]
[327480125,1716104322705,-522.94149242,0.00016438,2]
[327480126,1716104322728,-500.0,0.00016438,2]
[327480127,1716104322752,-500.0,0.00016438,2]
[327480128,1716104322775,-274.24725433,0.000165,2]
[327480129,1716104322798,-664.15,0.00016711,2]
[327480130,1716104322821,-500.0,0.00016711,2]
[327480131,1716104322845,-500.0,0.00016711,2]
[327480132,1716104322870,-500.0,0.00016711,2]
[327480133,1716104322895,-500.0,0.00016711,2]
[327480134,1716104322918,-500.0,0.00016712,2]
[327480135,1716104322941,-500.0,0.00016712,2]
[327480136,1716104322965,-500.0,0.00016712,2]
[327480137,1716104322989,-500.0,0.00016712,2]
[327480138,1716104323014,-500.0,0.00016712,2]
[327480139,1716104323037,-500.0,0.00016712,2]
[327480140,1716104323062,-500.0,0.00016712,2]
[327480141,1716104323087,-606.82,0.00016712,2]
[327480142,1716104323111,-500.0,0.00016712,2]
[327480143,1716104323135,-500.0,0.00016712,2]
[327480144,1716104323158,-500.0,0.00016712,2]
[327480145,1716104323181,-500.0,0.00016712,2]
[327480146,1716104323203,-500.0,0.00016712,2]
[327480147,1716104323227,-500.0,0.00016712,2]
[327480148,1716104323252,-500.0,0.00016712,2]
[327480149,1716104323275,-500.0,0.00016712,2]
[327480150,1716104323297,-500.0,0.00016712,2]
[327480151,1716104323320,-500.0,0.00016712,2]
[327480152,1716104323344,-500.0,0.00016712,2]
[327480153,1716104323367,-500.0,0.00016712,2]
[327480154,1716104323395,-500.0,0.00016712,2]
[327480155,1716104323419,-500.0,0.00016712,2]
[327480156,1716104323443,-1670.43,0.00016712,2]
[327480157,1716104323469,-500.0,0.00016712,2]
[327480158,1716104323491,-500.0,0.00016712,2]
[327480159,1716104323515,-4990.23,0.00016712,2]
[327480160,1716104323540,-500.0,0.00016712,2]
[327480161,1716104323569,-500.0,0.00016712,2]
[327480162,1716104323600,-500.0,0.00016712,2]
[327480163,1716104323629,-500.0,0.00016712,2]
[327480164,1716104323657,-500.0,0.00016712,2]
[327480165,1716104323683,-500.0,0.00016712,2]
[327480166,1716104323710,-500.0,0.00016712,2]
[327480167,1716104323737,-664.15,0.00016985,2]
[327480168,1716104323761,-500.0,0.00016985,2]
[327480169,1716104323787,-500.0,0.00016985,2]
[327480170,1716104323811,-500.0,0.00016985,2]
[327480171,1716104323836,-500.0,0.00016985,2]
[327480172,1716104323862,-570.11191803,0.00016986,2]
[327480173,1716104323886,-500.0,0.00016986,2]
[327480174,1716104323910,-500.0,0.00016986,2]
[327480175,1716104323933,-500.0,0.00016986,2]
[327480176,1716104323959,-500.0,0.00016986,2]
[327480177,1716104323983,-500.0,0.00016986,2]
[327480178,1716104324008,-500.0,0.00016986,2]
[327480179,1716104324034,-606.82,0.00016986,2]
[327480180,1716104324062,-500.0,0.00016986,2]
[327480181,1716104324087,-500.0,0.00016986,2]
[327480182,1716104324113,-500.0,0.00016986,2]
[327480183,1716104324138,-500.0,0.00016986,2]
[327480184,1716104324163,-500.0,0.00016986,2]
[327480185,1716104324189,-500.0,0.00016986,2]
[327480186,1716104324215,-500.0,0.00016986,2]
[327480187,1716104324239,-500.0,0.00016986,2]
[327480188,1716104324265,-500.0,0.00016986,2]
[327480189,1716104324289,-500.0,0.00016986,2]
[327480190,1716104324314,-500.0,0.00016986,2]
[327480191,1716104324339,-500.0,0.00016986,2]
[327480192,1716104324374,-500.0,0.00016986,2]
[327480193,1716104324404,-500.0,0.00016986,2]
[327480194,1716104324432,-1670.43,0.00016986,2]
[327480195,1716104324460,-500.0,0.00016986,2]
[327480196,1716104324484,-500.0,0.00016986,2]
[327480197,1716104324510,-4990.23,0.00016986,2]
[327480198,1716104324537,-500.0,0.00016986,2]
[327480199,1716104324564,-500.0,0.00016986,2]
[327480200,1716104324590,-500.0,0.00016986,2]
[327480201,1716104324617,-500.0,0.00016986,2]
[327480202,1716104324643,-500.0,0.00016986,2]
[327480203,1716104324669,-500.0,0.00016986,2]
[327480204,1716104324695,-500.0,0.00016986,2]
[327480205,1716104324720,-1755.73053112,0.00017259,2]
[327480206,1716104324744,-664.15,0.00017259,2]
[327480207,1716104324772,-500.0,0.00017259,2]
[327480208,1716104324798,-500.0,0.00017259,2]
[327480209,1716104324823,-500.0,0.00017259,2]
[327480210,1716104324851,-500.0,0.00017259,2]
[327480211,1716104324875,-500.0,0.0001726,2]
[327480212,1716104324905,-500.0,0.0001726,2]
[327480213,1716104324932,-500.0,0.0001726,2]
[327480214,1716104324957,-353.10415503,0.0001726,2]
[327480215,1716104324983,-500.0,0.0001726,2]
[327480216,1716104325008,-500.0,0.0001726,2]
[327480217,1716104325034,-606.82,0.0001726,2]
[327480218,1716104325059,-500.0,0.0001726,2]
[327480219,1716104325085,-500.0,0.0001726,2]
[327480220,1716104325111,-500.0,0.0001726,2]
[327480221,1716104325136,-500.0,0.0001726,2]
[327480222,1716104325162,-500.0,0.0001726,2]
[327480223,1716104325188,-500.0,0.0001726,2]
[327480224,1716104325212,-500.0,0.0001726,2]
[327480225,1716104325238,-500.0,0.0001726,2]
[327480226,1716104325264,-500.0,0.0001726,2]
[327480227,1716104325289,-500.0,0.0001726,2]
[327480228,1716104325314,-500.0,0.0001726,2]
[327480229,1716104325338,-500.0,0.0001726,2]
[327480230,1716104325363,-500.0,0.0001726,2]
[327480231,1716104325392,-1670.43,0.0001726,2]
[327480232,1716104325417,-500.0,0.0001726,2]
[327480233,1716104325440,-500.0,0.0001726,2]
[327480234,1716104325465,-4990.23,0.0001726,2]
[327480235,1716104325489,-500.0,0.0001726,2]
[327480236,1716104325515,-500.0,0.0001726,2]
[327480237,1716104325541,-500.0,0.0001726,2]
[327480238,1716104325568,-500.0,0.0001726,2]
[327480239,1716104325594,-500.0,0.0001726,2]
[327480240,1716104325619,-500.0,0.0001726,2]
[327480241,1716104325646,-500.0,0.0001726,2]
[327480242,1716104325674,-664.15,0.00017533,2]
[327480243,1716104325701,-500.0,0.00017533,2]
[327480244,1716104325727,-500.0,0.00017533,2]
[327480245,1716104325752,-500.0,0.00017533,2]
[327480246,1716104325779,-500.0,0.00017533,2]
[327480247,1716104325973,-500.0,0.00017534,2]
[327480248,1716104325997,-500.0,0.00017534,2]
[327480249,1716104326021,-500.0,0.00017534,2]
[327480250,1716104326045,-500.0,0.00017534,2]
[327480251,1716104326068,-606.82,0.00017534,2]
[327480252,1716104326092,-500.0,0.00017534,2]
[327480253,1716104326116,-500.0,0.00017534,2]
[327480254,1716104326141,-500.0,0.00017534,2]
[327480255,1716104326165,-500.0,0.00017534,2]
[327480256,1716104326190,-500.0,0.00017534,2]
[327480257,1716104326214,-500.0,0.00017534,2]
[327480258,1716104326238,-500.0,0.00017534,2]
[327480259,1716104326262,-500.0,0.00017534,2]
[327480260,1716104326285,-500.0,0.00017534,2]
[327480261,1716104326309,-500.0,0.00017534,2]
[327480262,1716104326333,-500.0,0.00017534,2]
[327480263,1716104326357,-500.0,0.00017534,2]
[327480264,1716104326385,-1670.43,0.00017534,2]
[327480265,1716104326409,-500.0,0.00017534,2]
[327480266,1716104326433,-500.0,0.00017534,2]
[327480267,1716104326459,-4990.23,0.00017534,2]
[327480268,1716104326483,-500.0,0.00017534,2]
[327480269,1716104326507,-500.0,0.00017534,2]
[327480270,1716104326530,-500.0,0.00017534,2]
[327480271,1716104326554,-500.0,0.00017534,2]
[327480272,1716104326577,-500.0,0.00017534,2]
[327480273,1716104326600,-500.0,0.00017534,2]
[327480274,1716104326623,-152.3484225,0.00017708,2]
[327480275,1716104326646,-664.15,0.00017807,2]
[327480276,1716104326669,-500.0,0.00017807,2]
[327480277,1716104326692,-500.0,0.00017807,2]
[327480278,1716104326716,-500.0,0.00017807,2]
[327480279,1716104326740,-500.0,0.00017807,2]
[327480280,1716104326765,-606.82,0.00017808,2]
[327480281,1716104326788,-500.0,0.00017808,2]
[327480282,1716104326811,-458.7,0.00017808,2]
[327480283,1716104326834,-631.45,0.00017808,2]
[327480284,1716104326859,-500.0,0.00017808,2]
[327480285,1716104326884,-1670.43,0.00017808,2]
[327480286,1716104326908,-500.0,0.00017808,2]
[327480287,1716104326932,-4990.23,0.00017808,2]
[327480288,1716104326955,-500.0,0.00017808,2]
[327480289,1716104326979,-500.0,0.00017808,2]
[327480290,1716104327003,-500.0,0.00017808,2]
[327480291,1716104327026,-500.0,0.00017808,2]
[327480292,1716104327050,-10451.02330036,0.00017898,2]
[327480293,1716104327072,-725.8587562,0.00018,2]
[327480294,1716104327095,-895.99360919,0.00018,2]
[327480295,1716104327119,-3945.28533072,0.00018,2]
[327480296,1716104327142,-8356.66836009,0.00018,7]
[327480297,1716104327166,-664.15,0.00018081,2]
[327480298,1716104327193,-500.0,0.00018081,2]
[327480299,1716104327217,-10144.89252996,0.00018082,3]
[327480300,1716104327241,-606.82,0.00018082,2]
[327480301,1716104327264,-500.0,0.00018082,2]
[327480302,1716104327288,-500.0,0.00018082,2]
[327480303,1716104327313,-1670.43,0.00018082,2]
[327480304,1716104327340,-500.0,0.00018082,2]
[327480305,1716104327363,-4990.23,0.00018082,2]
[327480306,1716104327391,-500.0,0.00018082,2]
[327480307,1716104327415,-500.0,0.00018082,2]
[327480308,1716104327439,-500.0,0.00018082,2]
[327480309,1716104327462,-443.77233733,0.00018082,2]
[327480310,1716104327486,-664.15,0.00018355,2]
[327480311,1716104327510,-500.0,0.00018355,2]
[327480312,1716104327534,-606.82,0.00018356,2]
[327480313,1716104327558,-500.0,0.00018356,2]
[327480314,1716104327583,-500.0,0.00018356,2]
[327480315,1716104327610,-1670.43,0.00018356,2]
[327480316,1716104327635,-500.0,0.00018356,2]
[327480317,1716104327660,-4990.23,0.00018356,2]
[327480318,1716104327683,-500.0,0.00018356,2]
[327480319,1716104327706,-500.0,0.00018356,2]
[327480320,1716104327729,-500.0,0.00018356,2]
[327480321,1716104327753,-664.15,0.00018629,2]
[327480322,1716104327777,-500.0,0.00018629,2]
[327480323,1716104327799,-154.84515485,0.0001863,2]
[327480324,1716104327822,-155.11895787,0.0001863,2]
[327480325,1716104327844,-606.82,0.0001863,2]
[327480326,1716104327866,-500.0,0.0001863,2]
[327480327,1716104327890,-500.0,0.0001863,2]
[327480328,1716104327914,-1670.43,0.0001863,2]
[327480329,1716104327938,-500.0,0.0001863,2]
[327480330,1716104327963,-4990.23,0.0001863,2]
[327480331,1716104327986,-500.0,0.0001863,2]
[327480332,1716104328011,-500.0,0.0001863,2]
[327480333,1716104328036,-500.0,0.0001863,2]
[327480334,1716104328059,-774.15793041,0.00018737,2]
[327480335,1716104328084,-664.15,0.00018903,2]
[327480336,1716104328109,-500.0,0.00018903,2]
[327480337,1716104328133,-606.82,0.00018904,2]
[327480338,1716104328157,-500.0,0.00018904,2]
[327480339,1716104328181,-500.0,0.00018904,2]
[327480340,1716104328205,-1670.43,0.00018904,2]
[327480341,1716104328230,-500.0,0.00018904,2]
[327480342,1716104328255,-4990.23,0.00018904,2]
[327480343,1716104328373,-338.65,0.00018904,2]
[327480344,1716104328442,-645.7,0.00018904,2]
[327480345,1716104328466,-500.0,0.00018904,2]
[327480346,1716104328489,-27339.38403183,0.0001897,2]
[327480347,1716104328514,-664.15,0.00019177,2]
[327480348,1716104328540,-500.0,0.00019177,2]
[327480349,1716104328566,-606.82,0.00019178,2]
[327480350,1716104328590,-500.0,0.00019178,2]
[327480351,1716104328613,-500.0,0.00019178,2]
[327480352,1716104328638,-1670.43,0.00019178,2]
[327480353,1716104328662,-500.0,0.00019178,2]
[327480354,1716104328685,-4990.23,0.00019178,2]
[327480355,1716104328708,-500.0,0.00019178,2]
[327480356,1716104328732,-664.15,0.00019451,2]
[327480357,1716104328757,-500.0,0.00019451,2]
[327480358,1716104328780,-606.82,0.00019452,2]
[327480359,1716104328804,-500.0,0.00019452,2]
[327480360,1716104328829,-500.0,0.00019452,2]
[327480361,1716104328853,-1670.43,0.00019452,2]
[327480362,1716104328878,-500.0,0.00019452,2]
[327480363,1716104328902,-4990.23,0.00019452,2]
[327480364,1716104328926,-500.0,0.00019452,2]
[327480365,1716104328951,-664.15,0.00019725,2]
[327480366,1716104328976,-500.0,0.00019725,2]
[327480367,1716104328999,-606.82,0.00019726,2]
[327480368,1716104329023,-500.0,0.00019726,2]
[327480369,1716104329048,-274.70838088,0.00019726,2]
[327480370,1716104329072,-1670.43,0.00019726,2]
[327480371,1716104329096,-500.0,0.00019726,2]
[327480372,1716104329121,-4990.23,0.00019726,2]
[327480373,1716104329146,-500.0,0.00019726,2]
[327480374,1716104329170,-664.15,0.00019999,2]
[327480375,1716104329194,-500.0,0.00019999,2]
[327480376,1716104329217,-10645.9878915,0.0002,2]
[327480377,1716104329240,-400.0,0.0002,2]
[327480378,1716104329266,-154.84515485,0.0002,2]
[327480379,1716104329289,-462.97870343,0.0002,2]
[327480380,1716104329311,-240.34533742,0.0002,2]
[327480381,1716104329335,-3004.54408875,0.0002,2]
[327480382,1716104329358,-130557.39731618,0.0002,2]
[327480383,1716104329383,-606.82,0.0002,2]
[327480384,1716104329406,-500.0,0.0002,2]
[327480385,1716104329428,-200.0,0.0002,2]
[327480386,1716104329452,-1670.43,0.0002,2]
[327480387,1716104329475,-500.0,0.0002,2]
[327480388,1716104329499,-4990.23,0.0002,2]
[327480389,1716104329522,-500.0,0.0002,2]
[327480390,1716104329545,-606.82,0.00020273,2]
[327480391,1716104329568,-500.0,0.00020273,2]
[327480392,1716104329596,-1670.43,0.00020273,2]
[327480393,1716104329625,-500.0,0.00020273,2]
[327480394,1716104329648,-4990.23,0.00020273,2]
[327480395,1716104329671,-664.15,0.00020273,2]
[327480396,1716104329698,-500.0,0.00020273,2]
[327480397,1716104329724,-500.0,0.00020273,2]
[327480398,1716104329751,-154.92807847,0.00020545,2]
[327480399,1716104329774,-307.02230937,0.00020546,2]
[327480400,1716104329796,-606.82,0.00020547,2]
[327480401,1716104329820,-356.0484666,0.00020547,2]
[327480402,1716104329845,-1670.43,0.00020547,2]
[327480403,1716104329870,-500.0,0.00020547,2]
[327480404,1716104329894,-4990.23,0.00020547,2]
[327480405,1716104329918,-664.15,0.00020547,2]
[327480406,1716104329940,-500.0,0.00020547,2]
[327480407,1716104329966,-500.0,0.00020547,2]
[327480408,1716104329989,-1581.20220046,0.00020819,2]
[327480409,1716104330012,-283.54671049,0.0002082,2]
[327480410,1716104330036,-154.88805734,0.0002082,2]
[327480411,1716104330059,-606.82,0.00020821,2]
[327480412,1716104330083,-1670.43,0.00020821,2]
[327480413,1716104330107,-500.0,0.00020821,2]
[327480414,1716104330130,-4990.23,0.00020821,2]
[327480415,1716104330155,-664.15,0.00020821,2]
[327480416,1716104330192,-500.0,0.00020821,2]
[327480417,1716104330217,-500.0,0.00020821,2]
[327480418,1716104330240,-370.90420451,0.00020912,2]
[327480419,1716104330265,-522.3717193,0.00020912,2]
[327480420,1716104330288,-411.31754376,0.00020912,2]
[327480421,1716104330313,-359.38021758,0.00020913,2]
[327480422,1716104330340,-606.82,0.00021095,2]
[327480423,1716104330364,-1670.43,0.00021095,2]
[327480424,1716104330393,-500.0,0.00021095,2]
[327480425,1716104330418,-4990.23,0.00021095,2]
[327480426,1716104330443,-664.15,0.00021095,2]
[327480427,1716104330467,-616.74240779,0.00021095,2]
[327480428,1716104330491,-500.0,0.00021095,2]
[327480429,1716104330514,-606.82,0.00021369,2]
[327480430,1716104330539,-1670.43,0.00021369,2]
[327480431,1716104330564,-500.0,0.00021369,2]
[327480432,1716104330588,-4990.23,0.00021369,2]
[327480433,1716104330612,-664.15,0.00021369,2]
[327480434,1716104330636,-500.0,0.00021369,2]
[327480435,1716104330658,-5600.0,0.000215,6]
[327480436,1716104330680,-606.82,0.00021643,2]
[327480437,1716104330704,-1670.43,0.00021643,2]
[327480438,1716104330728,-500.0,0.00021643,2]
[327480439,1716104330752,-4990.23,0.00021643,2]
[327480440,1716104330776,-664.15,0.00021643,2]
[327480441,1716104330800,-500.0,0.00021643,2]
[327480442,1716104330824,-606.82,0.00021917,2]
[327480443,1716104330848,-1670.43,0.00021917,2]
[327480444,1716104330872,-241.9,0.00021917,2]
[327480445,1716104330896,-4990.23,0.00021917,2]
[327480446,1716104330920,-664.15,0.00021917,2]
[327480447,1716104330945,-500.0,0.00021917,2]
[327480448,1716104330967,-166.666666,0.00021918,2]
[327480449,1716104330989,-306.50201242,0.00022,2]
[327480450,1716104331012,-154.84515485,0.00022,14]
[327480451,1716104331034,-606.82,0.00022191,2]
[327480452,1716104331058,-1670.43,0.00022191,2]
[327480453,1716104331081,-4990.23,0.00022191,2]
[327480454,1716104331104,-664.15,0.00022191,2]
[327480455,1716104331126,-166.666666,0.00022431,2]
[327480456,1716104331149,-606.82,0.00022465,2]
[327480457,1716104331174,-1670.43,0.00022465,2]
[327480458,1716104331197,-4990.23,0.00022465,2]
[327480459,1716104331222,-664.15,0.00022465,2]
[327480460,1716104331246,-729.28061658,0.00022739,2]
[327480461,1716104331271,-607.0249194,0.00022739,2]
[327480462,1716104331295,-1670.51797037,0.00022739,2]
[327480463,1716104331319,-4990.3629968,0.00022739,2]